[Event "45th FIDE Olympiad 2024"]
[Site "Budapest"]
[Date "2024.09.19"]
[Round "8.9"]
[White "Predke, Alexandr"]
[Black "Abdusattorov, Nodirbek"]
[Result "0-1"]
[ECO "B12"]
[WhiteElo "2671"]
[BlackElo "2766"]
[Annotator "TA"]
[PlyCount "140"]
[EventDate "2024.09.05"]
[EventType "team-tourn"]
[EventCountry "HUN"]
[SourceTitle "playchess.com"]
[Source "ChessBase"]
[SourceQuality "1"]
[WhiteTeam "Serbia"]
[BlackTeam "Uzbekistan"]
[WhiteTeamCountry "SRB"]
[BlackTeamCountry "UZB"]
[TimeControl "40/5400+30:1800+30"]

{[%evp 76,140,-154,-160,-142,-162,-181,-233,-235,-228,-230,-254,-234,-226,-111,-219,-87,-97,-33,-39,-77,-78,-76,-72,-80,-78,-71,-83,-87,-87,-95,-49,-8,-8,-8,-8,0,0,0,-8,-8,-8,-8,-8,-8,-10,-10,-10,-10,-10,-10,-10,-10,-1463,-1366,-12833,-11131,-29975,-29976,-29976,-29977,-29977,-29978,-29981,-29979,-29979,-3804]} 1. e4 {[%emt 0:00:06]} c6 {[%emt 0:00:23]} 2. d4 {[%emt 0:01:13]} d5 {[%emt 0:00:09]} 3. e5 {[%emt 0:00:04]} Bf5 {[%emt 0:00:09]} 4. h4 {[%emt 0:00:06]} Qb6 {[%emt 0:00:22]} 5. a4 {[%emt 0:01:21]} a5 {[%emt 0:01:16]} 6. g4 {[%emt 0:06:27] B12: Caro-Kann: Advance Variation.} Bd7 {[%emt 0:00:12]} 7. Rh3 $146 {[%emt 0:02:09]} ({Predecessor:} 7. h5 h6 8. f4 c5 9. dxc5 Qb4+ 10. Kf2 e6 11. Nc3 Bxc5+ 12. Kg3 Qb6 13. Nf3 {0-1 Nestorovic,N (2449)-Radivojevic,I (2356) SRB-chT Kragujevac 2015 (5.2)}) 7... h5 {[%emt 0:05:46]} 8. Rb3 {[%emt 0:00:48]} Qc7 {[%emt 0:00:10]} 9. g5 {[%emt 0:16:11]} g6 {[%emt 0:09:58]} 10. Re3 {[%emt 0:35:56]} Bg4 {[%emt 0:05:10]} 11. Ne2 {[%emt 0:01:42]} e6 {[%emt 0:01:11]} 12. f3 {[%emt 0:02:44]} Bf5 {[%emt 0:00:07]} 13. b3 {[%emt 0:00:02]} Ne7 {[%emt 0:02:54]} 14. Ng3 {[%emt 0:01:55]} c5 {[%emt 0:04:00]} 15. Rc3 {[%emt 0:13:20]} Nec6 {[%emt 0:04:33]} 16. Nxf5 {[%emt 0:01:26]} gxf5 {[%emt 0:00:10]} 17. f4 {[%emt 0:03:16]} cxd4 {[%emt 0:00:15]} 18. Rh3 {[%emt 0:01:36]} Nd7 {[%emt 0:04:01]} 19. Na3 {[%emt 0:01:19]} Qb6 {[%emt 0:12:09]} 20. Bd3 {[%emt 0:01:09]} Nc5 {[%emt 0:03:13]} 21. Nb5 {[%emt 0:00:19]} Rc8 {[%emt 0:00:09]} 22. Bb2 {[%emt 0:01:07]} Ne4 {[%emt 0:02:23]} 23. Ke2 {[%emt 0:02:29]} Bc5 {[%emt 0:01:07]} 24. Qg1 {[%emt 0:00:44]} Kf8 {[%emt 0:01:07]} 25. Rd1 {[%emt 0:00:30]} Kg7 {[%emt 0:00:32]} 26. Rh2 {[%emt 0:01:45]} Kg6 {[%emt 0:00:32]} 27. Kf1 {[%emt 0:00:42]} Rhd8 {[%emt 0:02:41]} 28. Re2 {[%emt 0:00:47]} Kg7 {[%emt 0:03:58]} 29. Kg2 {[%emt 0:00:25]} Ne7 {[%emt 0:00:08]} 30. Kh3 {[%emt 0:00:36]} Ng6 {[%emt 0:00:07]} 31. Rf1 {[%emt 0:00:08]} Rc6 {[%emt 0:03:03]} 32. Rf3 {[%emt 0:00:23]} Bb4 {[%emt 0:01:40]} 33. Bxd4 {[%emt 0:01:25]} Bc5 {[%emt 0:00:04]} 34. Qa1 {[%emt 0:01:20]} Rdc8 {[%emt 0:01:29]} 35. Qg1 {[%emt 0:01:12]} Nc3 {[%emt 0:08:40]} 36. Bxc5 {[%emt 0:00:23]} Qxc5 {[%emt 0:00:03]} 37. Qxc5 {[%emt 0:00:11]} Rxc5 {[%emt 0:00:02]} 38. Rd2 {[%emt 0:01:37]} Nxb5 {[%emt 0:03:54]} 39. axb5 {[%emt 0:00:04]} Rc3 {[%emt 0:00:23]} 40. Kg3 {[%emt 0:00:53]} Nf8 {[%emt 0:01:35]} 41. Kf2 {[%emt 0:13:42]} (41. Kh2 {was worth a try.}) 41... Nd7 $1 $19 {[%emt 0:00:40]} 42. Ke2 {[%emt 0:00:36]} Nc5 {[%emt 0:01:03]} 43. Kd1 {[%emt 0:00:03]} a4 {[%emt 0:06:36]} 44. bxa4 {[%emt 0:00:22]} Ra8 {[%emt 0:00:04]} (44... Ra3 $19 {has better winning chances.} 45. Ke2 Rxa4) 45. Rg2 {[%emt 0:11:06]} (45. g6 $17 fxg6 (45... Rxa4 46. gxf7 Ra1+ 47. Ke2 $19) 46. Rg2) 45... Rxa4 {[%emt 0:01:09]} (45... Nxd3 $1 $19 {and Black stays clearly on top.} 46. cxd3 Ra3 (46... Rxa4 47. Rb2 $19)) 46. g6 $17 {[%emt 0:00:05] [#]} Nxd3 {[%emt 0:05:28]} (46... fxg6 $6 47. Rfg3 Nxd3 (47... Rxf4 48. Rxg6+ Kh7 49. Rg7+ Kh8 50. Rg8+ Kh7 51. R2g7+ Kh6 52. Rg6+ Kh7 53. Bf1 $11) 48. Rxg6+ Kh7 49. Rg7+ Kh8 50. Rg8+ Kh7 51. R2g7+ Kh6 52. Rg2 $11 (52. cxd3 Rxd3+ 53. Kc2 Rda3 $11)) (46... Ra1+ $1 $17 47. Kd2 Rxd3+ 48. Rxd3 Nxd3 49. Kxd3 (49. gxf7+ Kxf7 50. Kxd3 Rh1 $17) 49... fxg6) 47. gxf7+ $15 {[%emt 0:00:10]} Kxf7 {[%emt 0:00:03]} 48. cxd3 {[%emt 0:00:06]} Ra1+ {[%emt 0:00:02]} 49. Kd2 {[%emt 0:00:04]} d4 {[%emt 0:00:02]} 50. Rfg3 {[%emt 0:01:17]} Ra2+ {[%emt 0:00:19]} 51. Kd1 {[%emt 0:00:03]} Rxg2 {[%emt 0:00:10]} 52. Rxg2 {[%emt 0:00:03]} Rxd3+ {[%emt 0:10:40]} 53. Rd2 {[%emt 0:01:14]} Rh3 {[%emt 0:02:59]} 54. Rxd4 {[%emt 0:00:05]} Rxh4 {[%emt 0:00:01]} 55. b6 {[%emt 0:06:03]} Ke8 {[%emt 0:06:51]} 56. Rc4 {[%emt 0:00:23]} Rg4 {[%emt 0:00:05]} 57. Ke2 {[%emt 0:01:03]} h4 {[%emt 0:01:10]} 58. Kf3 {[%emt 0:01:40]} Rg1 {[%emt 0:09:19]} 59. Kf2 {[%emt 0:00:44]} Rb1 {[%emt 0:00:42]} 60. Rc8+ {[%emt 0:00:12]} Kf7 {[%emt 0:00:05]} 61. Rc7+ {[%emt 0:00:02]} Kg6 {[%emt 0:00:07]} 62. Rxb7 {[%emt 0:00:13]} Kh5 {[%emt 0:00:12]} (62... h3 $5 63. Kg3 $8 Rb3+ 64. Kh2 Kh5 $11) 63. Rg7 {[%emt 0:00:32]} h3 {[%emt 0:00:35]} 64. Rg5+ $2 {[%emt 0:02:19][%mdl 8192]} (64. b7 $11) 64... Kh4 $19 {[%emt 0:00:13]} 65. b7 {[%emt 0:00:26]} Rxb7 {[%emt 0:01:09]} 66. Rg6 {[%emt 0:00:02] [#]} Rb2+ $1 {[%emt 0:00:24]} 67. Kf3 {[%emt 0:00:12]} Rb3+ {[%emt 0:00:03]} 68. Kf2 {[%emt 0:00:03]} h2 {[%emt 0:00:36]} 69. Rh6+ {[%emt 0:01:22]} Kg4 {[%emt 0:00:04]} 70. Kg2 {[%emt 0:00:02]} Rb6 {[%emt 0:00:03]} (70... h1=Q+ $142 71. Kxh1 Rh3+ (71... Kxf4 72. Rxe6 Rb1+ 73. Kg2 $11) 72. Rxh3 Kxh3 73. Kg1 Kg3 74. Kf1 Kxf4 75. Kf2 Ke4 (75... Kxe5 {is a self mate.} 76. Ke3 f4+ 77. Kf3 Kf5 78. Kf2 Ke4 79. Ke2 f3+ 80. Kf2 Kf4 81. Kf1 Ke3 82. Ke1 e5 83. Kf1 f2 84. Kg2 Ke2 85. Kh3 f1=Q+ 86. Kg4 Qf6 87. Kh5 Qe6 88. Kg5 Kf3 89. Kh5 Kf4 90. Kh4 Qh6#) 76. Ke2 f4 (76... Kxe5 {gets mated.} 77. Ke3 Kd5 78. Kd3 e5 79. Ke3 e4 80. Ke2 Kd4 81. Kd2 e3+ 82. Ke2 Ke4 83. Ke1 Kd3 84. Kd1 f4 85. Ke1 f3 86. Kf1 Kd2 87. Kg1 e2 88. Kf2 e1=Q+ 89. Kxf3 Qh4 90. Kg2 Ke3 91. Kg1 Kf3 92. Kf1 Qh1#) 77. Kf2 f3 (77... Kxe5 78. Kf3 Kf5 79. Ke2 Kg4 80. Kf2 e5 81. Kg2 e4 82. Kh2 e3 83. Kg2 e2 84. Kf2 f3 85. Ke1 Kg3 86. Kd2 Kf2 87. Kc3 e1=Q+ 88. Kc4 Kg2 89. Kd4 f2 90. Kd3 f1=Q+ 91. Kd4 Qb4+ 92. Ke5 Qff4+ 93. Ke6 Qbd6#) 78. Kf1 Kxe5 79. Kg1 Kf4 80. Kf2 e5 81. Ke1 Kg3 82. Kf1 f2 83. Ke2 Kg2 (83... f1=Q+ 84. Kxf1 Kf3 85. Ke1 e4 86. Kd2 e3+ 87. Ke1 e2 88. Kd2 Kf2 89. Kd3 e1=Q 90. Kc4 Qa5 91. Kd4 Kf3 92. Kc4 Ke4 93. Kb3 Kd3 94. Kb2 Qb4+ 95. Ka2 Kc3 96. Ka1 Qb2#) 84. Kd3 f1=Q+ (84... f1=B+ 85. Ke4 $11) 85. Ke4 Qf4+ 86. Kd5 e4 87. Kc6 e3 88. Kd7 e2 89. Ke6 Qc7 (89... e1=B 90. Kd5 Qf6 91. Kc5 Qe6 92. Kd4 Bb4 93. Kd3 Kf3 94. Kc2 Qa2+ 95. Kd3 Qe2+ 96. Kd4 Qe4#) 90. Kd5 e1=Q (90... e1=B 91. Ke6 Kf3 92. Kd5 Bb4 93. Ke6 Qh7 94. Kf6 Kf4 95. Ke6 Qf5#) 91. Kd4 Qee5+ 92. Kd3 Qcc3#) 0-1

[Event "45th FIDE Olympiad 2024"]
[Site "Budapest"]
[Date "2024.09.19"]
[Round "8.9"]
[White "Almedina Ortiz, Edgardo J."]
[Black "Khan, Taffin"]
[Result "1-0"]
[WhiteElo "2196"]
[BlackElo "2066"]
[PlyCount "65"]
[EventDate "2024.09.05"]
[EventType "team-tourn"]
[EventCountry "HUN"]
[WhiteTeam "Puerto Rico"]
[BlackTeam "Guyana"]
[WhiteTeamCountry "PUR"]
[BlackTeamCountry "GUY"]
[TimeControl "40/5400+30:1800+30"]

1. d4 d5 2. Bf4 Nf6 3. e3 c5 4. dxc5 Qa5+ 5. Nd2 Nc6 6. a3 Qxc5 7. Ngf3 Nh5 8. Nb3 Qb6 9. Qxd5 Nxf4 10. exf4 Be6 11. Qb5 Qc7 12. Ne5 a6 13. Qa4 g5 14. Nxc6 bxc6 15. fxg5 Bg7 16. Bd3 Bxb2 17. Rb1 Bc3+ 18. Kf1 Rg8 19. Be4 Rc8 20. h4 Kf8 21. Nc5 Bd5 22. Rh3 Qa5 23. Qxa5 Bxa5 24. Bxh7 Rh8 25. Bd3 Bc7 26. c4 Bd6 27. Nd7+ Ke8 28. Nb6 Be6 29. Nxc8 Bxc8 30. Rh1 Bxa3 31. Be4 c5 32. Rb8 Kd8 33. Bb7 1-0

[Event "45th FIDE Olympiad 2024"]
[Site "Budapest"]
[Date "2024.09.19"]
[Round "8.10"]
[White "Yakubboev, Nodirbek"]
[Black "Sarana, Alexey"]
[Result "1/2-1/2"]
[ECO "B90"]
[WhiteElo "2666"]
[BlackElo "2713"]
[Annotator "TA"]
[PlyCount "117"]
[EventDate "2024.09.05"]
[EventType "team-tourn"]
[EventCountry "HUN"]
[SourceTitle "playchess.com"]
[Source "ChessBase"]
[SourceQuality "1"]
[WhiteTeam "Uzbekistan"]
[BlackTeam "Serbia"]
[WhiteTeamCountry "UZB"]
[BlackTeamCountry "SRB"]
[TimeControl "40/5400+30:1800+30"]

{[%evp 27,117,27,89,41,36,6,66,14,16,0,71,90,129,109,145,135,125,127,150,109,111,126,158,80,82,73,68,68,68,52,60,31,52,52,57,59,47,54,59,56,77,65,64,71,70,74,103,97,97,97,97,97,97,97,97,97,97,97,97,97,97,97,97,97,97,97,97,97,97,97,97,97,97,97,97,97,97,97,97,97,93,56,97,97,97,97,107,0,97,0,107,0]} 1. e4 {[%emt 0:00:08]} c5 {[%emt 0:00:05]} 2. Nf3 {[%emt 0:00:05]} d6 {[%emt 0:00:15]} 3. d4 {[%emt 0:00:06]} cxd4 {[%emt 0:00:09]} 4. Nxd4 {[%emt 0:00:03]} Nf6 {[%emt 0:00:15]} 5. Nc3 {[%emt 0:00:06]} a6 {[%emt 0:00:05]} 6. Be3 {[%emt 0:00:08]} Ng4 {[%emt 0:02:31]} 7. Bc1 {[%emt 0:00:21]} Nf6 {[%emt 0:00:14]} 8. Be3 {[%emt 0:00:06]} Ng4 {[%emt 0:00:05]} 9. Bg5 {[%emt 0:00:05]} h6 {[%emt 0:00:10]} 10. Bh4 {[%emt 0:00:02]} g5 {[%emt 0:00:29]} 11. Bg3 {[%emt 0:00:05]} Bg7 {[%emt 0:00:13]} 12. Qd2 {[%emt 0:00:12]} Nc6 {[%emt 0:09:31]} 13. Nb3 {[%emt 0:00:04]} Be6 {[%emt 0:00:56]} 14. h4 {[%emt 0:08:49]} gxh4 {[%emt 0:01:11]} (14... Rc8 $11 {keeps the balance.}) 15. Rxh4 {[%emt 0:03:17]} (15. Bxh4 $16 b5 16. f3) 15... h5 {[%emt 0:00:23]} 16. O-O-O {[%emt 0:20:35]} Rc8 {[%emt 0:12:01]} (16... Bf6 $11) 17. Nd5 {[%emt 0:10:51]} ({White should play} 17. Kb1 $14) 17... Nce5 $11 {[%emt 0:09:01]} 18. Nf4 {[%emt 0:08:07]} Bxb3 {[%emt 0:11:53]} (18... Ng6 $1 $11 19. Rxh5 Nxf4 20. Rxh8+ Bxh8) 19. axb3 $16 {[%emt 0:00:02]} Nf6 {[%emt 0:00:48] [#]} 20. Qe2 $1 $36 {[%emt 0:01:20][%mdl 2048] Black is under strong pressure.} Qa5 {[%emt 0:22:58]} 21. Kb1 {[%emt 0:01:13] Repels Qa1+} (21. Nxh5 $2 Nxh5 22. Kb1 Nxg3 23. fxg3 Kf8 $19) 21... Nc6 {[%emt 0:00:33]} 22. c3 {[%emt 0:06:29] Dodges Nb4} Qg5 {[%emt 0:01:50]} 23. Nd5 {[%emt 0:10:46]} Ne5 {[%emt 0:03:17]} 24. Rh3 {[%emt 0:04:05] f4 is the strong threat.} Qg6 {[%emt 0:03:57]} 25. Bxe5 {[%emt 0:05:08]} (25. Nxf6+ $142 Bxf6 26. f4) 25... dxe5 {[%emt 0:00:01]} 26. Qd3 {[%emt 0:07:34]} Nxd5 {[%emt 0:04:18]} ({And not} 26... Nxe4 27. Nc7+ Kf8 28. Qd8+ Rxd8 29. Rxd8#) 27. Qxd5 {[%emt 0:00:44]} Qc6 {[%emt 0:00:08] Prevents Qd7+.} 28. Bc4 {[%emt 0:11:50] White is much more active.} Qxd5 {[%emt 0:05:46]} 29. exd5 {[%emt 0:01:05]} (29. Rxd5 e6 30. Rd1 Rd8 31. Rxd8+ Kxd8 $16) 29... Rh6 {[%emt 0:03:59]} 30. Bd3 {[%emt 0:00:40]} h4 {[%emt 0:02:29]} 31. Rdh1 {[%emt 0:00:11]} Rd8 {[%emt 0:02:42]} 32. Be4 {[%emt 0:00:38][%cal Ob3b4]} (32. Rxh4 Rxh4 33. Rxh4 e6 $11) 32... Kd7 {[%emt 0:00:42]} 33. Rxh4 {[%emt 0:01:04]} Rxh4 {[%emt 0:00:35]} 34. Rxh4 $14 {[%emt 0:00:01][%mdl 4096] Endgame. KRB-KRB} Rh8 {[%emt 0:00:07]} 35. Rg4 {[%emt 0:00:39]} Bf6 {[%emt 0:00:08] [#]} 36. d6 $1 {[%emt 0:01:07]} Rh4 {[%emt 0:02:45]} (36... b6 37. dxe7) 37. Rxh4 {[%emt 0:00:31]} Bxh4 $16 {[%emt 0:00:02] KB-KB} 38. g3 {[%emt 0:00:11]} Bg5 {[%emt 0:00:01]} 39. Bxb7 {[%emt 0:00:08]} a5 {[%emt 0:00:13]} 40. dxe7 {[%emt 0:00:20]} Kxe7 {[%emt 0:00:25]} 41. Be4 {[%emt 0:31:30]} Kd6 {[%emt 0:30:21]} 42. Ka2 {[%emt 0:00:00]} Bc1 {[%emt 0:00:00]} 43. Ka3 {[%emt 0:00:00]} Kc5 {[%emt 0:00:00]} 44. g4 {[%emt 0:00:00]} f6 {[%emt 0:00:00]} 45. f3 {[%emt 0:00:00]} Kb5 {[%emt 0:00:00]} 46. Bd3+ {[%emt 0:00:00]} Kc5 {[%emt 0:00:00]} 47. Bf5 {[%emt 0:00:00]} Kb5 {[%emt 0:00:00]} 48. Bc8 {[%emt 0:00:00]} Kc5 {[%emt 0:00:00]} 49. Bb7 {[%emt 0:00:00]} Kb6 {[%emt 0:00:00]} 50. Ba8 {[%emt 0:00:00]} Kc5 {[%emt 0:00:00]} 51. Ka2 {[%emt 0:00:00]} Bg5 {[%emt 0:00:00]} 52. Kb1 {[%emt 0:00:00]} Bf4 {[%emt 0:00:00]} 53. Kc2 {[%emt 0:00:00]} Bg5 {[%emt 0:00:00]} 54. Kd3 {[%emt 0:00:00]} Bh4 {[%emt 0:00:00]} 55. Ke4 {[%emt 0:00:00]} Bg5 {[%emt 0:00:00]} 56. Kf5 {[%emt 0:00:00]} Bh4 {[%emt 0:00:00]} 57. Ke4 {[%emt 0:00:00]} Bg5 {[%emt 0:00:00]} 58. Kf5 {[%emt 0:00:00]} Bh4 $1 {[%emt 0:00:00]} 59. Ke4 {[%emt 0:00:00] Weighted Error Value: White=0.15 (very precise) /Black=0.11 (very precise) .  Mistake:       	White=3     	Black=2      Inaccurate:     	White=3     	Black=4      OK:         	White=15    	Black=14     Best:        	White=3     	Black=1      Strong:       	White=1     	Black=1} (59. Ke6 $16) 1/2-1/2

[Event "45th FIDE Olympiad 2024"]
[Site "Budapest"]
[Date "2024.09.19"]
[Round "8.10"]
[White "Drayton, Anthony"]
[Black "Rodriguez Santiago, Jaime"]
[Result "1-0"]
[WhiteElo "1964"]
[BlackElo "2002"]
[PlyCount "69"]
[EventDate "2024.09.05"]
[EventType "team-tourn"]
[EventCountry "HUN"]
[WhiteTeam "Guyana"]
[BlackTeam "Puerto Rico"]
[WhiteTeamCountry "GUY"]
[BlackTeamCountry "PUR"]
[TimeControl "40/5400+30:1800+30"]

1. d4 Nf6 2. c4 e6 3. Nc3 Bb4 4. Nf3 O-O 5. Qc2 d5 6. Bg5 Nbd7 7. e3 h6 8. Bh4 Be7 9. Bd3 dxc4 10. Bxc4 c5 11. O-O a6 12. a4 cxd4 13. exd4 b6 14. d5 exd5 15. Nxd5 Nxd5 16. Bxd5 Ra7 17. Bg3 Nf6 18. Ba2 Rd7 19. Rad1 Bb7 20. Ne5 Rxd1 21. Rxd1 Qa8 22. Qc7 Bc5 23. Nxf7 Bd5 24. Bxd5 Nxd5 25. Qe5 Rxf7 26. Qxd5 Qf8 27. Kf1 Kh7 28. f3 Rf5 29. Qe4 Qf7 30. Bf2 g6 31. b4 Rf4 32. Qd3 Rxb4 33. Qd8 Be7 34. Qc7 Qe6 35. Re1 1-0

[Event "45th FIDE Olympiad 2024"]
[Site "Budapest"]
[Date "2024.09.19"]
[Round "8.11"]
[White "Indjic, Aleksandar"]
[Black "Sindarov, Javokhir"]
[Result "1/2-1/2"]
[ECO "A14"]
[WhiteElo "2611"]
[BlackElo "2677"]
[Annotator "TA"]
[PlyCount "79"]
[EventDate "2024.09.05"]
[EventType "team-tourn"]
[EventCountry "HUN"]
[SourceTitle "playchess.com"]
[Source "ChessBase"]
[SourceQuality "1"]
[WhiteTeam "Serbia"]
[BlackTeam "Uzbekistan"]
[WhiteTeamCountry "SRB"]
[BlackTeamCountry "UZB"]
[TimeControl "40/5400+30:1800+30"]

{[%evp 11,79,0,14,-2,0,27,6,17,5,5,12,6,0,0,78,71,61,57,53,46,41,37,42,43,39,15,31,22,17,-8,-2,-8,0,0,0,-21,-14,-8,-2,-11,0,0,0,-8,0,0,0,0,0,0,0,-12,-8,-2,0,0,0,0,0,0,0,0,0,0,0,0,0,0,0,0]} 1. Nf3 {[%emt 0:00:35]} Nf6 {[%emt 0:00:24]} 2. c4 {[%emt 0:00:21]} e6 {[%emt 0:00:24]} 3. g3 {[%emt 0:00:35]} d5 {[%emt 0:00:24]} 4. Bg2 {[%emt 0:00:10]} Be7 {[%emt 0:00:05]} 5. O-O {[%emt 0:00:24]} O-O {[%emt 0:00:08]} 6. d3 {[%emt 0:00:12]} c5 {[%emt 0:09:44]} 7. Ne5 {[%emt 0:00:22]} d4 {[%emt 0:08:27]} 8. e3 {[%emt 0:03:03]} dxe3 {[%emt 0:06:47]} 9. Bxe3 {[%emt 0:00:34]} Qc7 {[%emt 0:07:24]} 10. f4 {[%emt 0:01:19]} Nfd7 {[%emt 0:00:05]} 11. Nf3 {[%emt 0:00:37]} Nc6 {[%emt 0:17:53]} 12. Nc3 {[%emt 0:00:48]} b6 {[%emt 0:03:47]} (12... a6 $11) 13. d4 {[%emt 0:03:49] White is more active.} Na5 {[%emt 0:03:32]} 14. b3 {[%emt 0:13:49]} Bb7 $1 {[%emt 0:00:38]} 15. d5 {[%emt 0:01:16]} exd5 {[%emt 0:00:16]} 16. Nxd5 {[%emt 0:00:24]} Bxd5 {[%emt 0:00:06]} 17. Qxd5 {[%emt 0:00:11]} Rad8 {[%emt 0:00:46]} 18. Qf5 {[%emt 0:09:40]} Nc6 {[%emt 0:00:55]} 19. Rad1 {[%emt 0:07:59]} Nf6 {[%emt 0:00:21] The position is equal.} 20. h3 {[%emt 0:00:46]} g6 {[%emt 0:01:00]} 21. Qb1 {[%emt 0:00:06]} Nh5 {[%emt 0:00:34]} 22. Bf2 {[%emt 0:00:49]} Bf6 {[%emt 0:00:09]} 23. Rd5 {[%emt 0:02:12]} Nb4 {[%emt 0:02:57]} 24. Rdd1 {[%emt 0:04:58]} Rfe8 {[%emt 0:00:21]} 25. a3 {[%emt 0:07:31] [#] aiming for Rxd8.} Nc6 {[%emt 0:00:40]} 26. Rxd8 {[%emt 0:01:12]} Rxd8 {[%emt 0:00:36]} 27. Re1 {[%emt 0:00:10]} Nd4 {[%emt 0:02:38]} 28. Nd2 {[%emt 0:12:17]} Bg7 {[%emt 0:02:19]} 29. Ne4 {[%emt 0:00:12]} Nf6 {[%emt 0:04:11]} 30. Nc3 {[%emt 0:03:07]} h5 {[%emt 0:00:12][%cal Oh5h4]} 31. Nd5 {[%emt 0:13:37]} Nxd5 {[%emt 0:00:10]} 32. Bxd5 {[%emt 0:00:07]} Nf5 {[%emt 0:03:25]} 33. Qe4 {[%emt 0:01:53] Prevents Ne7.} Bc3 {[%emt 0:01:46]} 34. Re2 {[%emt 0:01:49]} Kf8 {[%emt 0:00:39]} 35. g4 {[%emt 0:01:15]} Nd4 {[%emt 0:00:31]} 36. Bxd4 {[%emt 0:01:12]} Bxd4+ {[%emt 0:00:11]} 37. Kg2 {[%emt 0:01:26]} hxg4 {[%emt 0:00:05]} 38. hxg4 {[%emt 0:00:07]} Qd7 {[%emt 0:00:04]} 39. Kf3 {[%emt 0:01:14]} Re8 {[%emt 0:00:11]} 40. Qxe8+ {[%emt 0:00:09] Weighted Error Value: White=0.04 (flawless) /Black=0.05 (flawless) .  Mistake:       	---       	Black=1      Inaccurate:     	---       	Black=1      OK:         	White=16    	Black=17     Strong:       	---       	Black=1} 1/2-1/2

[Event "45th FIDE Olympiad 2024"]
[Site "Budapest"]
[Date "2024.09.19"]
[Round "8.11"]
[White "Zilleruelo Irizarry, Diego"]
[Black "Sandiford, Keron"]
[Result "1-0"]
[WhiteElo "2041"]
[BlackElo "1755"]
[PlyCount "103"]
[EventDate "2024.09.05"]
[EventType "team-tourn"]
[EventCountry "HUN"]
[WhiteTeam "Puerto Rico"]
[BlackTeam "Guyana"]
[WhiteTeamCountry "PUR"]
[BlackTeamCountry "GUY"]
[TimeControl "40/5400+30:1800+30"]

1. e4 c5 2. Nf3 d6 3. Be2 Nf6 4. c3 Nc6 5. Qc2 g6 6. d4 cxd4 7. cxd4 Bg7 8. O-O O-O 9. Nc3 Bg4 10. Be3 Nd7 11. Rfd1 Qb8 12. Qd2 Nf6 13. Rac1 a6 14. d5 Bxf3 15. Bxf3 Ne5 16. Be2 Rc8 17. b3 Ned7 18. f4 Nc5 19. Bf3 a5 20. Bd4 b5 21. Qe3 Ra7 22. e5 Nfd7 23. Ne4 Rb7 24. Nxc5 dxc5 25. d6 cxd4 26. Rxc8+ Qxc8 27. Bxb7 Qxb7 28. dxe7 dxe3 29. e8=Q+ Nf8 30. Re1 Qe4 31. Qxb5 Qxf4 32. Rf1 Qd4 33. Qc4 Qxc4 34. bxc4 Bxe5 35. Rd1 Ne6 36. Rd5 Bd4 37. Kf1 Bb6 38. g3 Kf8 39. Rb5 Bc7 40. Rd5 Ke7 41. c5 f6 42. Ke2 Be5 43. Kxe3 Bd4+ 44. Rxd4 Nxd4 45. Kxd4 Kd7 46. Kd5 h5 47. c6+ Kc7 48. Ke6 Kxc6 49. Kxf6 Kb5 50. Kxg6 Ka4 51. Kxh5 Ka3 52. g4 1-0

[Event "45th FIDE Olympiad 2024"]
[Site "Budapest"]
[Date "2024.09.19"]
[Round "8.12"]
[White "Vokhidov, Shamsiddin"]
[Black "Ivic, Velimir"]
[Result "1/2-1/2"]
[ECO "B90"]
[WhiteElo "2650"]
[BlackElo "2599"]
[Annotator "TA"]
[PlyCount "81"]
[EventDate "2024.09.05"]
[EventType "team-tourn"]
[EventCountry "HUN"]
[SourceTitle "playchess.com"]
[Source "ChessBase"]
[SourceQuality "1"]
[WhiteTeam "Uzbekistan"]
[BlackTeam "Serbia"]
[WhiteTeamCountry "UZB"]
[BlackTeamCountry "SRB"]
[TimeControl "40/5400+30:1800+30"]

{[%evp 14,81,0,10,4,8,10,2,0,0,0,0,0,0,5,0,5,0,15,0,0,0,0,0,0,0,4,7,49,46,63,22,39,19,76,53,51,46,76,39,31,35,40,39,37,37,39,41,39,8,7,0,0,0,0,0,0,0,0,0,0,0,0,0,0,2,5,0,0,5]} 1. e4 {[%emt 0:00:06]} c5 {[%emt 0:00:19]} 2. Nf3 {[%emt 0:00:08][%cal Bg1f3,Bf3d4,Bd4e2,Be2f4][%mdl 32]} d6 {[%emt 0:00:14]} 3. d4 {[%emt 0:00:18]} cxd4 {[%emt 0:00:07]} 4. Nxd4 {[%emt 0:00:07]} Nf6 {[%emt 0:00:10]} 5. Nc3 {[%emt 0:00:14]} a6 {[%emt 0:00:06]} 6. Bd3 {[%emt 0:00:32]} e5 {[%emt 0:01:41]} 7. Nde2 {[%emt 0:00:11]} Be7 {[%emt 0:00:52]} 8. O-O {[%emt 0:00:18]} Be6 {[%emt 0:01:27]} 9. f4 {[%emt 0:03:22]} exf4 {[%emt 0:00:20]} 10. Nxf4 {[%emt 0:00:05]} Nc6 {[%emt 0:00:08]} 11. Be3 {[%emt 0:01:47]} Ne5 {[%emt 0:00:44]} 12. a4 {[%emt 0:00:10]} O-O {[%emt 0:00:19]} 13. Bd4 {[%emt 0:00:05]} Nfd7 {[%emt 0:02:32]} 14. Ncd5 {[%emt 0:05:40]} Bg5 {[%emt 0:01:14]} 15. a5 {[%emt 0:05:42]} Nc5 {[%emt 0:06:19]} 16. h3 {[%emt 0:06:25]} Rc8 {[%emt 0:08:25]} 17. b4 {[%emt 0:06:57]} Ncxd3 {[%emt 0:07:42]} 18. cxd3 {[%emt 0:03:30]} Bxf4 {[%emt 0:02:17]} 19. Nxf4 {[%emt 0:00:19]} Qd7 {[%emt 0:04:28]} 20. Rb1 {[%emt 0:09:33][%cal Ob4b5]} f5 {[%emt 0:08:33] [#]} 21. b5 $1 {[%emt 0:03:21]} fxe4 {[%emt 0:07:33][%cal Oe5f3]} 22. bxa6 {[%emt 0:02:33]} bxa6 {[%emt 0:01:30][%cal Oe5f3]} 23. dxe4 {[%emt 0:00:22]} (23. Nxe6 {simplifies} Qxe6 24. Rxf8+ Rxf8 25. dxe4 Nc6 26. Rb7) 23... Nc6 {[%emt 0:07:53]} (23... Bc4 $1 $11 24. Rf2 (24. Bxe5 Bxf1 25. Kxf1 Rf7 $11) 24... Bb5) 24. Bc3 {[%emt 0:10:26] Hoping for Nxe6.} Bc4 {[%emt 0:09:23]} 25. Rf3 {[%emt 0:01:33]} Rf7 {[%emt 0:00:59]} 26. Nh5 {[%emt 0:06:18] [#] Rxf7 is the strong threat.} Rxf3 {[%emt 0:11:54]} 27. Qxf3 {[%emt 0:00:10]} Ne5 {[%emt 0:00:24]} 28. Qg3 {[%emt 0:02:42]} Qf7 {[%emt 0:02:22] Wards off Nf6+} 29. Bxe5 {[%emt 0:03:03]} dxe5 {[%emt 0:00:04]} 30. Qxe5 {[%emt 0:00:34]} Re8 {[%emt 0:01:12]} 31. Qd4 {[%emt 0:04:39][%cal Oh5g7] aiming for Nxg7!} Ba2 $1 {[%emt 0:07:42] The position is equal.} 32. Rb2 {[%emt 0:01:47]} Qxh5 {[%emt 0:00:09]} 33. Rxa2 {[%emt 0:00:04]} Qe5 {[%emt 0:01:09]} 34. Qxe5 {[%emt 0:01:29]} Rxe5 $11 {[%emt 0:00:01][%mdl 4096] Endgame. KR-KR} 35. Ra4 {[%emt 0:00:06]} Kf7 {[%emt 0:00:19]} 36. Kf2 {[%emt 0:00:05]} Ke6 {[%emt 0:00:56]} 37. Ke3 {[%emt 0:00:42]} Rb5 {[%emt 0:00:26]} 38. Kf4 {[%emt 0:03:15]} Kf6 {[%emt 0:01:50]} 39. h4 {[%emt 0:00:26]} h5 {[%emt 0:02:01]} 40. g3 {[%emt 0:00:43]} g6 {[%emt 0:02:17]} 41. Ra3 {[%emt 0:31:52] Weighted Error Value: White=0.07 (flawless) /Black=0.06 (flawless) .  Mistake:       	---       	Black=1      Inaccurate:     	White=2     	Black=2      OK:         	White=11    	Black=15     Best:        	---       	Black=3      Strong:       	---       	Black=1} 1/2-1/2